bitfinex-derivatives/quotes_ETHF0:USTF0_20250606
["timestamp","ask_amount","ask_price","bid_price","bid_amount"]
[1749198952714,4.02074,2459.0,2458.9,2.13057]
[1749198955426,3.2078,2459.0,2458.9,2.13057]
[1749198955625,4.02074,2459.0,2458.9,2.13057]
[1749198960721,3.2078,2459.0,2458.9,2.13057]
[1749198961026,4.02074,2459.0,2458.9,2.13057]
[1749198962328,4.02074,2459.0,2458.9,0.81297]
[1749198964433,0.81297,2458.9,2458.8,5.06933351]
[1749198964833,0.81297,2458.9,2458.8,4.998]
[1749198965330,0.81297,2458.9,2458.8,5.811]
[1749198966433,0.81297,2458.9,2458.8,0.813]
[1749198967533,0.813,2458.8,2458.7,42.298]
[1749198967832,0.81299,2458.9,2458.8,0.81297]
[1749198968429,5.41227,2459.0,2458.9,0.81297]
[1749198969527,0.81301,2458.9,2458.8,0.81297]
[1749198969734,4.02076,2459.0,2458.9,0.81297]
[1749198970033,4.02076,2459.0,2458.9,0.88430351]
[1749198970435,3.2078,2459.0,2458.9,0.88430351]
[1749198970735,4.02074,2459.0,2458.9,0.88430351]
[1749198971233,0.81294,2459.0,2458.9,0.88430351]
[1749198972640,2.03243,2458.9,2458.5,0.00408506]
[1749198972835,4.02087,2458.6,2458.5,0.00408506]
[1749198973038,5.02096929,2458.6,2458.5,0.00408506]
[1749198979444,5.01474273,2458.6,2458.5,0.00408506]
[1749198979940,5.01474273,2458.6,2458.5,0.07541857]
[1749198980631,22.95987,2458.6,2458.5,0.07541857]
[1749198981032,19.75207,2458.6,2458.5,0.88851857]
[1749198981243,19.75207,2458.6,2458.5,0.07541857]
[1749198981832,19.75207,2458.6,2458.5,0.88851857]
[1749198982338,19.75207,2458.6,2458.5,0.07541857]
[1749198982538,19.75207,2458.6,2458.5,0.88851857]
[1749198982745,22.95987,2458.6,2458.5,0.07541857]
[1749198984046,22.95987,2458.6,2458.5,0.00408506]
[1749198985046,22.95987,2458.6,2458.5,0.07541857]
[1749198986139,4.02087,2458.6,2458.5,0.07541857]
[1749198986340,22.93287,2458.6,2458.5,0.07541857]
[1749198988347,22.93287,2458.6,2458.5,0.88851857]
[1749198989454,22.91687,2458.6,2458.5,0.88851857]
[1749198989754,4.02087,2458.6,2458.5,0.88851857]
[1749198990250,3.2078,2458.6,2458.5,0.88851857]
[1749198990441,0.81304,2458.7,2458.6,0.81304]
[1749198990750,0.81303,2458.8,2458.7,0.81304]
[1749198991048,4.02079,2458.9,2458.8,0.813]
[1749198992151,3.2078,2458.9,2458.8,1.4726]
[1749198993050,0.81297,2459.0,2458.9,0.81294]
[1749198993251,0.81297,2459.0,2458.9,2.16154]
[1749198994152,0.81297,2458.9,2458.8,0.6596]
[1749198995447,0.81297,2458.9,2458.8,1.4726]
[1749198996253,0.81297,2458.9,2458.8,1.54393351]
[1749198997956,0.81297,2458.9,2458.8,0.73093351]
[1749198998253,0.81297,2458.9,2458.8,1.54393351]
[1749199001258,0.81297,2458.9,2458.8,0.73093351]
[1749199002052,4.02077,2458.9,2458.8,0.73093351]
[1749199003355,0.81307,2458.7,2458.6,0.81307]
[1749199003953,0.81307,2458.7,2458.6,1.49457]
[1749199004763,0.81307,2458.7,2458.6,0.6815]
[1749199005355,0.81307,2458.6,2458.5,0.00408506]
[1749199005665,4.02087,2458.6,2458.5,0.00408506]
[1749199007258,4.99975675,2458.6,2458.5,0.00408506]
[1749199008662,4.02087,2458.6,2458.5,0.81718506]
[1749199009465,4.02087,2458.6,2458.5,0.88851857]
[1749199009864,4.02087,2458.6,2458.5,0.07541857]
[1749199010367,4.99066835,2458.6,2458.5,0.07541857]
[1749199010566,4.02087,2458.6,2458.5,0.07541857]
[1749199011169,4.02087,2458.6,2458.5,0.88851857]
[1749199011370,4.02087,2458.6,2458.5,0.07541857]
[1749199012069,4.02087,2458.6,2458.5,0.88851857]
[1749199017974,4.02087,2458.6,2458.5,0.07541857]
[1749199018475,4.02087,2458.6,2458.5,0.88851857]
[1749199019173,4.02087,2458.6,2458.5,0.07541857]
[1749199019376,5.34097,2458.6,2458.5,0.07541857]
[1749199019575,5.34097,2458.6,2458.5,0.88851857]
[1749199019775,4.02087,2458.6,2458.5,0.07541857]
[1749199019978,3.2078,2458.6,2458.5,0.88851857]
[1749199020177,19.4599,2458.8,2458.7,0.81303]
[1749199020482,21.22782216,2458.8,2458.7,0.81303]
[1749199020781,3.2078,2458.9,2458.8,0.813]
[1749199021184,3.2078,2458.9,2458.6,3.36843]
[1749199021185,0.813,2458.8,2458.7,0.81302]
[1749199021683,3.874,2458.9,2458.8,0.813]
[1749199021684,4.0208,2458.9,2458.8,0.813]
[1749199021883,3.2078,2458.9,2458.8,0.813]
[1749199022582,3.2078,2458.9,2458.8,1.504]
[1749199023484,3.2078,2459.2,2458.8,0.691]
[1749199023686,0.81297,2459.0,2458.9,0.81294]
[1749199024387,0.81297,2458.9,2458.8,1.50398]
[1749199024580,0.81297,2458.9,2458.8,6.42898]
[1749199025887,0.81297,2458.9,2458.8,6.50031351]
[1749199029287,0.81297,2458.9,2458.8,1.57531351]
[1749199031184,4.02077,2458.9,2458.8,1.57531351]
[1749199031690,4.02077,2458.9,2458.8,0.76233351]
[1749199031988,4.98078978,2458.9,2458.8,0.07133351]
[1749199032186,4.02077,2458.9,2458.8,0.07133351]
[1749199032390,4.98076537,2458.9,2458.8,0.07133351]
[1749199033493,4.02077,2458.9,2458.8,0.07133351]
[1749199036994,4.02077,2458.9,2458.8,0.88433351]
[1749199037196,3.2078,2458.9,2458.8,0.88433351]
[1749199038195,4.02077,2458.9,2458.8,0.88433351]
[1749199039887,0.81296,2459.0,2458.9,0.81294]
[1749199040395,0.6662,2459.1,2459.0,0.81294]
[1749199040590,0.8129,2459.1,2459.0,2.07534]
[1749199041293,3.2078,2459.2,2458.9,0.675]
[1749199041498,0.81297,2458.9,2458.8,0.88431351]
[1749199041792,0.81296,2459.0,2458.9,0.81294]
[1749199043799,3.2078,2459.2,2459.1,0.8129]
[1749199043995,4.02067,2459.2,2459.1,0.8129]
[1749199045401,3.2078,2459.2,2459.1,0.8129]
[1749199045899,4.02067,2459.2,2459.1,0.8129]
[1749199046097,4.02067,2459.2,2459.1,2.7584]
[1749199046300,4.02067,2459.2,2459.1,1.4689]
[1749199048596,3.2078,2459.2,2459.1,2.7584]
[1749199048997,3.21389669,2459.6,2459.1,8.97772]
[1749199049198,4.02665669,2459.6,2459.5,0.81277]
[1749199049398,4.98913104,2459.6,2459.5,0.81277]
[1749199049703,4.02665669,2459.6,2459.5,41.61277]
[1749199050101,0.81277,2459.5,2459.4,0.81278]
[1749199050702,0.81277,2459.5,2459.4,41.61278]
[1749199050902,0.81277,2459.5,2459.4,40.8]
[1749199051207,0.81277,2459.5,2459.4,0.8128]
[1749199051705,4.02665669,2459.6,2459.5,0.81277]
[1749199052206,0.81277,2459.5,2459.4,0.81277]
[1749199052710,0.8128,2459.4,2459.3,5.70482]
[1749199053207,0.8128,2459.4,2459.3,0.81284]
[1749199053602,1.4829,2459.4,2459.3,0.81284]
[1749199055205,0.8128,2459.4,2459.3,2.14624]
[1749199056304,0.8128,2459.4,2459.3,2.21757351]
[1749199056505,1.46468,2459.5,2459.4,0.8128]
[1749199056700,3.21389669,2459.6,2459.3,1.40473351]
[1749199056701,4.02664669,2459.6,2459.5,0.81277]
[1749199056906,3.21389669,2459.6,2459.5,0.81277]
[1749199057401,0.00609669,2459.6,2459.5,0.81277]
[1749199058010,0.81256,2460.2,2459.5,7.03193]
[1749199058303,11.45306,2460.4,2460.2,0.81254]
[1749199058304,1.45523,2460.3,2460.2,0.81254]
[1749199058605,0.81254,2460.3,2460.2,0.81252]
[1749199058906,0.81257,2460.1,2460.0,6.98789669]
[1749199059107,4.02037,2460.1,2460.0,6.98789669]
[1749199059404,4.02037,2460.1,2460.0,46.97529669]
[1749199060711,4.02037,2460.1,2460.0,40.80609669]
[1749199060914,4.02037,2460.1,2460.0,0.00609669]
[1749199063513,4.66277,2460.1,2460.0,0.00609669]
[1749199063712,9.66277,2460.1,2460.0,0.00609669]
[1749199064414,10.62287393,2460.1,2460.0,6.69e-06]
[1749199064719,15.51387393,2460.1,2460.0,6.69e-06]
[1749199064919,16.83037393,2460.1,2460.0,6.69e-06]
[1749199065616,0.8128,2459.4,2458.9,0.6956]
[1749199065817,4.0206,2459.4,2458.9,5.5866]
[1749199066621,4.0206,2459.4,2459.3,3.51e-06]
[1749199066821,5.3371,2459.4,2459.3,3.51e-06]
[1749199069121,24.0981,2459.4,2459.3,3.51e-06]
[1749199069619,5.3371,2459.4,2459.3,3.51e-06]
[1749199069820,24.0951,2459.4,2459.3,3.51e-06]
[1749199071122,24.0911,2459.4,2459.3,3.51e-06]
[1749199071718,4.0206,2459.4,2459.3,3.51e-06]
[1749199076724,22.7636,2459.4,2459.3,3.51e-06]
[1749199080824,4.0206,2459.4,2459.3,3.51e-06]
[1749199085734,3.2078,2459.4,2459.1,0.67588506]
[1749199085936,0.81287,2459.2,2459.1,0.67588506]
[1749199086439,0.81287,2459.2,2459.1,1.98188506]
[1749199088040,0.81287,2459.2,2459.1,2.79478506]
[1749199088440,0.81287,2459.2,2459.1,1.98188506]
[1749199088741,0.81287,2459.2,2459.1,2.79478506]
[1749199089837,0.81287,2459.2,2459.1,1.98188506]
[1749199090234,0.81287,2459.2,2459.1,2.79478506]
[1749199091137,0.81287,2459.2,2459.1,1.98188506]
[1749199094644,0.81287,2459.2,2459.1,2.79478506]
[1749199099947,0.81287,2459.2,2459.1,2.86611857]
[1749199106248,3.2078,2459.4,2459.3,0.81284]
[1749199106553,0.81279,2459.6,2459.5,0.81274]
[1749199106854,1.76875921,2459.6,2459.5,0.81274]
[1749199107253,4.02053,2459.7,2459.6,0.81274]
[1749199107455,4.97646729,2459.7,2459.6,1.46234]
[1749199107659,4.97646729,2459.7,2459.6,42.26234]
[1749199108551,4.97646729,2459.7,2459.6,40.8]
[1749199109159,6.29536729,2459.7,2459.6,40.8]
[1749199109452,0.81277,2459.5,2459.4,0.6654]
[1749199109755,0.81277,2459.5,2459.4,41.4654]
[1749199109957,0.81287,2459.2,2459.1,1.40071857]
[1749199110153,0.81287,2459.2,2459.1,0.00408506]
[1749199111457,0.81287,2459.2,2459.1,0.81698506]
[1749199111658,3.2078,2459.7,2459.3,2.0321]
[1749199111851,0.81277,2459.6,2459.5,0.81275]
[1749199112759,0.81277,2459.5,2459.4,2.14987]
[1749199117158,0.81277,2459.5,2459.4,2.22120351]
[1749199118351,3.2078,2459.7,2459.5,0.81274]
[1749199118352,0.81275,2459.6,2459.5,0.81274]
[1749199118759,0.81275,2459.6,2459.5,2.08194]
[1749199119461,0.81275,2459.6,2459.5,4.50629049]
[1749199119649,3.2078,2459.7,2459.5,4.50629049]
[1749199119857,3.2078,2459.7,2459.6,0.81274]
[1749199120059,3.2078,2459.7,2459.6,2.19284]
[1749199120855,0.81265,2459.9,2459.8,0.81264]
[1749199121761,0.81265,2459.9,2459.8,1.45374]
[1749199125963,0.81265,2459.9,2459.8,42.25374]
[1749199129061,0.81265,2459.9,2459.8,41.4411]
[1749199129265,0.81267,2459.8,2459.7,5.65968]
[1749199129655,0.81267,2459.8,2459.7,46.45968]
[1749199130362,0.81267,2459.8,2459.7,46.53101351]
[1749199131366,0.81267,2459.8,2459.7,46.45968]
[1749199134665,0.81267,2459.8,2459.7,41.61268]
[1749199134865,0.81267,2459.8,2459.7,0.81268]
[1749199135871,0.8127,2459.7,2459.6,47.14581]
[1749199136162,0.8127,2459.7,2459.6,45.646]
[1749199136667,0.8127,2459.7,2459.6,46.45874]
[1749199137364,0.8127,2459.7,2459.6,8.08309049]
[1749199137667,0.8127,2459.7,2459.6,3.23709049]
[1749199139869,0.81267,2459.9,2459.8,0.81264]
[1749199140168,0.81267,2459.8,2459.7,3.91233049]
[1749199140364,0.8127,2459.7,2459.6,2.42435049]
[1749199140668,0.8127,2459.7,2459.6,3.23709049]
[1749199142563,2.03185,2459.6,2459.1,0.00408506]
[1749199142767,4.02067,2459.2,2459.1,0.00408506]
[1749199142973,9.80472583,2459.2,2459.1,0.00408506]
[1749199146673,8.86667,2459.2,2459.1,0.00408506]
[1749199149069,4.02067,2459.2,2459.1,0.00408506]
[1749199149266,8.2078,2459.2,2458.5,2.12328]
[1749199149472,0.81307,2458.6,2458.5,6.97028]
[1749199149972,0.81307,2458.6,2458.5,8.33968]
[1749199150970,0.81307,2458.6,2458.5,2.1233]
[1749199152366,0.81307,2458.6,2458.5,1.3102]
[1749199153076,0.81307,2458.6,2458.5,2.1233]
[1749199159378,0.81307,2458.6,2458.5,3.5159]
[1749199159881,0.81307,2458.6,2458.5,3.58723351]
[1749199161878,0.81307,2458.6,2458.5,3.5159]
[1749199162786,0.00609669,2458.8,2458.7,0.81303]
[1749199162980,0.81909669,2458.8,2458.7,0.81303]
[1749199165085,0.00609669,2458.8,2458.7,0.81303]
[1749199165476,0.81909669,2458.8,2458.7,0.81303]
[1749199165681,0.00609669,2458.8,2458.7,0.81303]
[1749199168088,0.81909669,2458.8,2458.7,0.81303]
[1749199170990,0.81307,2458.7,2458.6,0.81303]
[1749199172090,0.81307,2458.7,2458.6,2.12123]
[1749199172891,0.81912669,2458.8,2458.7,0.81303]
[1749199173087,0.81912669,2458.8,2458.7,2.12123]
[1749199177698,0.81912669,2458.8,2458.7,0.81303]
[1749199178097,0.81307,2458.7,2458.6,0.81305]
[1749199178295,1.46317,2458.7,2458.6,0.81305]
[1749199180095,1.46317,2458.7,2458.6,0.88438351]
[1749199180494,0.00609669,2458.8,2458.7,0.81303]
[1749199182304,0.00609669,2458.8,2458.7,41.61303]
[1749199182803,0.81909669,2458.8,2458.7,40.8]
[1749199183005,0.81909669,2458.8,2458.7,42.1631]
[1749199183303,0.00609669,2458.8,2458.7,42.1631]
[1749199183498,0.81909669,2458.8,2458.7,42.1631]
[1749199185913,0.81307,2458.6,2458.5,4.53100065]
[1749199186101,0.81307,2458.6,2458.5,7.4525]
[1749199186412,0.81307,2458.6,2458.5,48.2525]
[1749199187309,0.81307,2458.6,2458.5,49.0656]
[1749199187511,0.81307,2458.6,2458.5,48.2525]
[1749199188011,0.81307,2458.6,2458.5,49.0656]
[1749199188708,0.81307,2458.6,2458.5,48.2525]
[1749199189908,0.81307,2458.6,2458.5,43.4055]
[1749199190610,0.81307,2458.6,2458.5,42.1102]
[1749199191211,0.81307,2458.6,2458.5,42.9233]
[1749199192814,0.81307,2458.6,2458.5,47.7703]
[1749199193312,0.81307,2458.6,2458.5,42.9233]
[1749199193519,0.81307,2458.6,2458.5,47.7703]
[1749199195018,0.81307,2458.6,2458.5,46.9572]
[1749199195517,0.81307,2458.6,2458.5,45.647]
[1749199196030,0.81307,2458.6,2458.5,46.4601]
[1749199197611,0.81307,2458.6,2458.5,45.647]
[1749199197915,0.81307,2458.6,2458.5,40.8]
[1749199198718,0.81912669,2458.8,2458.5,41.6131]
[1749199198917,0.81306,2458.7,2458.6,4.03383065]
[1749199199117,0.00609669,2458.8,2458.7,0.81303]
[1749199199410,0.81909669,2458.8,2458.7,0.81303]
[1749199199612,0.81909669,2458.8,2458.7,1.45603]
[1749199199816,0.00609669,2458.8,2458.7,2.74733]
[1749199201118,0.81909669,2458.8,2458.7,2.74733]
[1749199201411,0.81909669,2458.8,2458.7,3.87637923]
[1749199201616,0.81909669,2458.8,2458.6,4.846]
[1749199201617,0.81303,2458.7,2458.6,4.846]
[1749199201818,1.49813,2458.7,2458.6,4.846]
[1749199202014,1.49813,2458.7,2458.6,45.646]
[1749199203022,1.49813,2458.7,2458.6,40.8]
[1749199203417,0.81303,2458.7,2458.6,41.61307]
[1749199204619,0.81303,2458.7,2458.6,42.99607]
[1749199204821,0.81910669,2458.8,2458.7,0.81303]
[1749199205017,0.81910669,2458.8,2458.7,2.19603]
[1749199206523,0.81910669,2458.8,2458.7,1.383]
[1749199207524,0.81910669,2458.8,2458.7,2.19603]
[1749199210229,0.81910669,2458.8,2458.7,2.88513]
[1749199211722,0.00609669,2458.8,2458.7,2.88513]
[1749199211930,0.00609669,2458.8,2458.7,6.11850923]
[1749199213729,0.00609669,2458.8,2458.7,9.32630923]
[1749199217635,0.00609669,2458.8,2458.7,50.12630923]
[1749199224936,0.81909669,2458.8,2458.7,50.12630923]
[1749199225133,0.00609669,2458.8,2458.7,46.89293]
[1749199225337,0.00609669,2458.8,2458.7,50.35493]
[1749199225338,0.81909669,2458.8,2458.7,50.35493]
[1749199225541,0.00609669,2458.8,2458.7,50.35493]
[1749199227647,0.00609669,2458.8,2458.7,53.58830923]
[1749199228441,0.00609669,2458.8,2458.7,48.74330923]
[1749199228646,0.00609669,2458.8,2458.7,53.58630923]
[1749199230645,4.69257,2459.2,2459.1,0.8129]
[1749199234048,1.48477,2459.2,2459.1,0.8129]
[1749199237152,0.6719,2459.2,2459.1,0.8129]
[1749199237448,1.48477,2459.2,2459.1,0.8129]
[1749199243158,0.6719,2459.2,2459.1,0.8129]
[1749199243358,0.65199669,2459.4,2459.3,0.81284]
[1749199243559,0.00609669,2459.4,2459.3,4.04770082]
[1749199243863,0.00609669,2459.4,2459.3,8.88970082]
[1749199244457,0.00609669,2459.4,2459.3,10.22260082]
[1749199246166,0.00609669,2459.4,2459.3,6.98774]
[1749199251965,0.6459,2459.7,2459.6,0.81274]
[1749199252372,0.6459,2459.7,2459.6,41.61274]
[1749199259080,0.6459,2459.7,2459.6,46.44974]
[1749199262381,0.6459,2459.7,2459.6,41.61274]
[1749199262881,1.4586,2459.7,2459.6,41.61274]
[1749199263183,0.6459,2459.7,2459.6,41.61274]
[1749199264585,0.65059669,2459.9,2459.8,0.81267]
[1749199264985,0.00609669,2459.9,2459.8,0.81267]
[1749199268281,0.81873669,2459.9,2459.8,0.81267]
[1749199268583,2.20233669,2459.9,2459.8,0.81267]
[1749199270682,0.00609669,2459.9,2459.8,0.81267]
[1749199271591,3.2078,2460.1,2460.0,0.8126]
[1749199271789,3.8479,2460.1,2460.0,0.8126]
[1749199273587,0.00609669,2460.3,2460.2,0.81254]
[1749199274682,0.00609669,2460.3,2460.2,2.80754]
[1749199277486,3.2078,2460.5,2460.4,0.81247]
[1749199277692,3.2078,2460.5,2460.4,5.64947]
[1749199278088,3.2078,2461.5,2460.4,13.1448]
[1749199278387,0.81206,2461.7,2461.4,3.2078]
[1749199278586,1.3022,2461.9,2461.5,4.836]
[1749199278791,0.81204,2461.7,2461.6,0.81208]
[1749199279093,0.81811669,2461.8,2461.7,0.81204]
[1749199279287,0.00609669,2461.8,2461.5,4.836]
[1749199279492,0.81810669,2461.8,2461.7,0.81204]
[1749199279694,0.00609669,2461.8,2461.7,0.81204]
[1749199281996,0.81810669,2461.8,2461.7,0.81204]
[1749199283190,0.00609669,2461.8,2461.7,0.81204]
[1749199285891,0.00609669,2461.8,2461.4,44.0078]
[1749199286095,1.31889669,2461.8,2461.7,4.835]
[1749199287497,2.13090669,2461.8,2461.7,5.64704]
[1749199287886,1.31889669,2461.8,2461.7,5.64704]
[1749199288098,0.00609669,2461.8,2461.7,5.64704]
[1749199288398,0.81810669,2461.8,2461.7,5.64704]
[1749199290502,0.00609669,2461.8,2461.7,5.64704]
[1749199292294,0.00609669,2461.8,2461.7,8.85484]
[1749199292495,0.00609669,2461.8,2461.7,10.23224]
[1749199295799,0.00609669,2461.8,2461.7,4.01984]
[1749199295999,0.00609669,2461.8,2461.7,8.84884]
[1749199298708,0.00609669,2461.8,2461.7,10.17924]
[1749199298903,0.00609669,2461.8,2461.7,10.84884]
[1749199299406,0.663,2462.0,2461.9,0.81198]
[1749199299604,3.2078,2462.6,2462.3,0.81185]
[1749199299605,0.6472,2462.4,2462.3,0.81185]
[1749199299803,0.6472,2462.4,2462.3,5.64085]
[1749199300906,1.45901,2462.4,2462.3,5.64085]
[1749199301107,0.6472,2462.4,2462.3,5.64085]
[1749199301507,1.45901,2462.4,2462.3,5.64085]
[1749199302306,1.45901,2462.4,2462.3,4.829]
[1749199302500,1.45901,2462.4,2462.3,5.64085]
[1749199306205,0.6472,2462.4,2462.2,0.6324]
[1749199306410,0.81185,2462.3,2462.2,0.81187]
[1749199306610,0.81185,2462.3,2462.2,5.63987]
[1749199309913,0.81185,2462.3,2462.2,6.27527]
[1749199312323,0.6472,2462.4,2462.3,0.81185]
[1749199313322,1.45901,2462.4,2462.3,0.81185]
[1749199316227,2.3791683,2462.4,2462.3,4.828]
[1749199316725,3.7775683,2462.4,2462.3,4.828]
[1749199316926,3.7775683,2462.4,2462.3,5.63985]
[1749199317125,3.7775683,2462.4,2462.3,4.828]
[1749199317326,3.7775683,2462.4,2462.3,5.63985]
[1749199317829,3.7775683,2462.4,2462.3,4.828]
[1749199318224,3.7775683,2462.4,2462.3,5.63985]
[1749199319326,3.7775683,2462.4,2462.3,4.828]
[1749199319526,3.7775683,2462.4,2462.3,5.63985]
[1749199320135,2.3791683,2462.4,2462.3,5.63985]
[1749199323425,2.3791683,2462.4,2462.3,4.828]
[1749199324025,2.3791683,2462.4,2462.3,5.63985]
[1749199325131,1.45901,2462.4,2462.3,5.63985]
[1749199325332,1.45901,2462.4,2462.3,0.81185]
[1749199325526,1.45901,2462.4,2462.3,5.63585]
[1749199326526,0.00609669,2462.6,2462.5,0.81178]
[1749199326724,2.38407907,2462.6,2462.5,0.81178]
[1749199326920,1.57232343,2462.6,2462.5,0.81178]
[1749199327125,2.38407343,2462.6,2462.5,0.81178]
[1749199328037,0.81181,2462.4,2462.3,9.43469927]
[1749199329330,0.81181,2462.4,2462.3,2.40308927]
[1749199329634,0.81185,2462.3,2462.2,8.03896927]
[1749199329834,1.47755,2462.3,2462.2,7.22708927]
[1749199331233,1.47755,2462.3,2462.2,8.03896927]
[1749199331434,1.47755,2462.3,2462.2,3.21496927]
[1749199331634,1.47755,2462.3,2462.2,8.03896927]
[1749199332329,1.47755,2462.3,2462.2,3.21496927]
[1749199332534,1.47755,2462.3,2462.2,8.03896927]
[1749199333436,1.47755,2462.3,2462.2,3.21496927]
[1749199333632,1.47755,2462.3,2462.2,8.03896927]
[1749199341645,1.47755,2462.3,2462.2,7.22708927]
[1749199341834,1.47755,2462.3,2462.2,2.40308927]
[1749199343529,0.8118,2462.5,2462.4,0.81178]
[1749199343743,0.81185,2462.4,2462.3,0.81183]
[1749199343939,0.81185,2462.4,2462.3,3.21491927]
[1749199345145,0.81185,2462.4,2462.3,2.40308927]
[1749199345341,0.81185,2462.3,2462.2,4.52026927]
[1749199347634,0.81185,2462.3,2462.1,8.71809669]
[1749199347635,5.0,2462.3,2462.1,0.00609669]
[1749199347838,5.0,2462.3,2461.2,7.25485082]
[1749199347839,0.81218,2461.3,2461.2,7.25485082]
[1749199348040,0.81218,2461.3,2461.2,5.96759]
[1749199348236,1.3708,2461.9,2461.2,5.1554]
[1749199348442,0.81213,2461.5,2461.4,0.8121]
[1749199348642,0.81213,2461.5,2461.4,2.1103]
[1749199348840,2.02994,2462.0,2461.4,1.2982]
[1749199349144,2.02994,2462.0,2461.5,2.11028]
[1749199349145,0.81208,2461.6,2461.5,2.11028]
[1749199350249,0.81208,2461.6,2461.5,1.2982]
[1749199352240,0.81208,2461.6,2461.5,2.11031]
[1749199352440,0.81208,2461.6,2461.5,1.2982]
[1749199352742,0.81208,2461.6,2461.5,2.11031]
[1749199353646,3.2078,2462.1,2461.5,9.327]
[1749199353850,0.812,2461.9,2461.8,0.81196]
[1749199354751,0.812,2461.9,2461.8,0.81198]
[1749199354752,0.81201,2461.9,2461.8,0.81198]
[1749199356946,0.81201,2461.8,2461.7,1.44602]
[1749199357850,0.81201,2461.8,2461.7,0.634]
[1749199358346,0.81208,2461.6,2461.5,3.2078]
[1749199358545,0.81218,2461.4,2461.3,0.81217]
[1749199360854,0.81211,2461.6,2461.5,0.81207]
[1749199369256,0.81211,2461.5,2461.4,1.45972]
[1749199373065,0.81209,2461.7,2461.6,0.81203]
[1749199374254,0.6661,2461.8,2461.7,0.81205]
[1749199374661,1.47811,2461.8,2461.7,0.81205]
[1749199374962,0.81201,2461.8,2461.7,0.81205]
[1749199375358,0.81201,2461.8,2461.7,1.45355]
[1749199376863,3.2078,2461.9,2461.8,0.81201]
[1749199376864,4.0198,2461.9,2461.8,0.81201]
[1749199378362,0.812,2461.9,2461.8,0.81201]
[1749199380664,1.5119,2462.0,2461.9,0.81201]
[1749199385160,0.81201,2461.9,2461.8,0.81202]
[1749199398291,0.81201,2461.9,2461.8,2.14672]
[1749199398894,0.81201,2461.9,2461.8,0.81202]
[1749199402397,0.81204,2461.8,2461.7,3.23209684]
[1749199404099,0.81204,2461.8,2461.7,3.23280596]
[1749199404397,0.81204,2461.8,2461.7,0.81205]
[1749199412397,0.81204,2461.8,2461.7,3.2335513]
[1749199414606,0.81204,2461.8,2461.7,0.81205]
[1749199415200,0.6999,2462.0,2461.9,0.81201]
[1749199415396,1.60561635,2462.0,2461.9,0.81201]
[1749199415802,0.81196,2462.1,2462.0,0.81194]
[1749199416105,1.71758927,2462.1,2462.0,0.81194]
[1749199416302,1.71758927,2462.1,2462.0,1.49644]
[1749199417300,0.90562927,2462.1,2462.0,1.49644]
[1749199417806,0.90562927,2462.1,2462.0,2.77194]
[1749199418307,1.71756927,2462.1,2462.0,2.77194]
[1749199418606,4.01974,2462.2,2462.1,0.81194]
[1749199418809,4.92497479,2462.2,2462.1,0.81194]
[1749199419009,4.92497479,2462.2,2462.1,0.50735895]
[1749199419710,1.71717479,2462.2,2462.1,0.50735895]
[1749199420008,0.90523479,2462.2,2462.1,0.50735895]
[1749199420202,0.90523479,2462.2,2462.1,1.78285895]
[1749199420402,0.637,2462.4,2462.1,1.78285895]
[1749199420403,0.81188,2462.3,2462.2,0.81191]
[1749199420609,1.70750795,2462.3,2462.2,1.44321]
[1749199421204,0.81188,2462.3,2462.2,1.44321]
[1749199422414,0.81191,2462.2,2462.1,1.6127508]
[1749199422716,0.81191,2462.2,2462.1,2.2434508]
[1749199423400,0.81191,2462.2,2462.1,0.6307]
[1749199424511,0.81191,2462.2,2462.1,1.44264]
[1749199425109,0.81191,2462.2,2462.1,3.0553908]
[1749199426706,0.81191,2462.2,2462.1,4.3550908]
[1749199427102,0.8119,2462.3,2462.2,0.81188]
[1749199427313,0.8119,2462.3,2462.2,2.42389918]
[1749199428206,0.8119,2462.3,2462.2,3.79259918]
[1749199428608,5.23734,2462.5,2462.4,0.81184]
[1749199428609,4.01964,2462.5,2462.4,0.81184]
[1749199429211,4.01964,2462.5,2462.4,2.13964]
[1749199430306,0.68809669,2462.6,2462.4,2.13964]
[1749199430307,0.68809669,2462.6,2462.5,0.81181]
[1749199430513,0.00609669,2462.6,2462.5,0.81181]
[1749199430708,0.00609669,2462.6,2462.5,2.08781]
[1749199431307,0.00609669,2462.6,2462.5,4.50963058]
[1749199432418,0.6987,2463.2,2463.1,0.81161]
[1749199432811,3.2078,2463.4,2463.3,0.81155]
[1749199433416,3.2078,2463.4,2463.3,2.42047448]
[1749199433723,3.2078,2463.4,2463.3,2.15035]
[1749199434321,0.81754669,2463.6,2463.5,0.81148]
[1749199435322,0.81148,2463.5,2463.4,1.3388]
[1749199436419,0.81756669,2463.6,2463.4,1.3388]
[1749199436615,0.00609669,2463.6,2463.4,1.3388]
[1749199436924,0.81754669,2463.6,2463.5,0.81148]
[1749199437219,0.00609669,2463.6,2463.5,41.61148]
[1749199437415,0.00609669,2463.6,2463.5,42.88398]
[1749199438721,0.81133,2464.0,2463.7,0.81142]
[1749199438911,4.0191,2464.1,2463.7,0.81142]
[1749199439112,4.0191,2464.1,2464.0,0.81132]
[1749199440311,0.81134,2464.0,2463.9,0.81133]
[1749199440518,0.81135,2464.0,2463.9,0.81132]
[1749199442225,0.8113,2464.1,2464.0,0.81127]
[1749199442523,0.8113,2464.1,2464.0,1.46107]
[1749199444124,0.00406446,2464.3,2464.1,0.81125]
[1749199444125,0.81128,2464.2,2464.1,0.81125]
[1749199444525,0.81128,2464.1,2464.0,1.46109]
[1749199445828,0.81132,2464.0,2463.9,0.6419]
[1749199446022,1.49812,2464.0,2463.9,0.6419]
[1749199446219,0.81138,2463.8,2463.7,1.45067]
[1749199446420,0.81138,2463.8,2463.7,6.25767]
[1749199446821,1.49816,2464.0,2463.9,0.81135]
[1749199450430,1.49816,2464.0,2463.8,0.81135]
[1749199450431,0.81138,2463.9,2463.8,0.81135]